[Event "*** SCC Grand Prix: Titled Tuesday Blitz"]
[Site "Chess.com"]
[Date "2020.08.11"]
[Round "4"]
[White "seorobert1971"]
[Black "ArjunErigaisi2003"]
[Result "1/2-1/2"]
[WhiteElo "2739"]
[BlackElo "3018"]
[TimeControl "180+1"]
[EndTime "10:41:27 PDT"]
[Termination "Game drawn - insufficient material"]

1. c4 {[%clk 0:03:00.9]} 1... e6 {[%clk 0:02:59.4]} 2. Nc3 {[%clk 0:03:01.8]}
2... d5 {[%clk 0:02:59.4]} 3. d4 {[%clk 0:03:02.1]} 3... c6 {[%clk 0:02:58.7]}
4. e3 {[%clk 0:03:01.2]} 4... Nf6 {[%clk 0:02:58.6]} 5. Nf3 {[%clk 0:03:01.4]}
5... Nbd7 {[%clk 0:02:57.9]} 6. Qc2 {[%clk 0:02:59.6]} 6... Bd6 {[%clk
0:02:56.9]} 7. b3 {[%clk 0:02:59.4]} 7... O-O {[%clk 0:02:55.8]} 8. Be2 {[%clk
0:02:59.4]} 8... b6 {[%clk 0:02:54.6]} 9. O-O {[%clk 0:02:59.5]} 9... Bb7 {[%clk
0:02:55.1]} 10. Bb2 {[%clk 0:02:59.7]} 10... Qe7 {[%clk 0:02:52.1]} 11. Rac1
{[%clk 0:02:54.8]} 11... Rac8 {[%clk 0:02:49.3]} 12. Rfd1 {[%clk 0:02:54.6]}
12... Rfd8 {[%clk 0:02:49.7]} 13. Qb1 {[%clk 0:02:52.8]} 13... a6 {[%clk
0:02:46.4]} 14. Qc2 {[%clk 0:02:51]} 14... h6 {[%clk 0:02:43.1]} 15. Qb1 {[%clk
0:02:50.6]} 15... c5 {[%clk 0:02:37.7]} 16. cxd5 {[%clk 0:02:49.8]} 16... Nxd5
{[%clk 0:02:21.9]} 17. Nxd5 {[%clk 0:02:43.4]} 17... Bxd5 {[%clk 0:02:22.8]} 18.
Bxa6 {[%clk 0:02:07.2]} 18... Bxf3 {[%clk 0:02:20.2]} 19. gxf3 {[%clk 0:02:04]}
19... Qg5+ {[%clk 0:02:09.1]} 20. Kf1 {[%clk 0:01:53.2]} 20... Ra8 {[%clk
0:02:02.5]} 21. Bb7 {[%clk 0:01:46.7]} 21... Rab8 {[%clk 0:01:52.4]} 22. f4
{[%clk 0:01:31.2]} 22... Qh5 {[%clk 0:01:52.3]} 23. Bg2 {[%clk 0:01:28.8]} 23...
Qxh2 {[%clk 0:01:49.4]} 24. Qe4 {[%clk 0:01:26]} 24... Qh5 {[%clk 0:01:44.3]}
25. Qf3 {[%clk 0:01:25.5]} 25... Qf5 {[%clk 0:01:38.9]} 26. Qe4 {[%clk
0:01:24.3]} 26... Qh5 {[%clk 0:01:30.3]} 27. Qf3 {[%clk 0:01:24.3]} 27... Qg6
{[%clk 0:01:30.2]} 28. Qg3 {[%clk 0:01:21.8]} 28... Qf6 {[%clk 0:01:24.8]} 29.
dxc5 {[%clk 0:00:43.8]} 29... Qxb2 {[%clk 0:01:25.7]} 30. cxd6 {[%clk
0:00:43.9]} 30... Nc5 {[%clk 0:01:16.1]} 31. f5 {[%clk 0:00:29.2]} 31... exf5
{[%clk 0:01:17]} 32. Bd5 {[%clk 0:00:24.8]} 32... Rd7 {[%clk 0:00:38.8]} 33. Bc6
{[%clk 0:00:22]} 33... Ne4 {[%clk 0:00:33.8]} 34. Bxe4 {[%clk 0:00:20.5]} 34...
fxe4 {[%clk 0:00:34.7]} 35. Qf4 {[%clk 0:00:17.2]} 35... Qxa2 {[%clk 0:00:30.1]}
36. Qxe4 {[%clk 0:00:15.9]} 36... Qxb3 {[%clk 0:00:27.5]} 37. Rd4 {[%clk
0:00:13.3]} 37... Rbd8 {[%clk 0:00:24.3]} 38. Qc6 {[%clk 0:00:09.9]} 38... b5
{[%clk 0:00:19.9]} 39. Rcd1 {[%clk 0:00:10]} 39... b4 {[%clk 0:00:19.3]} 40. Qc5
{[%clk 0:00:09.9]} 40... g6 {[%clk 0:00:18.2]} 41. Kg2 {[%clk 0:00:08.9]} 41...
Qa3 {[%clk 0:00:16.9]} 42. Rxb4 {[%clk 0:00:07.5]} 42... Qa8+ {[%clk 0:00:14.8]}
43. Kg1 {[%clk 0:00:07]} 43... Qf3 {[%clk 0:00:13.9]} 44. Rbd4 {[%clk
0:00:07.1]} 44... h5 {[%clk 0:00:13.4]} 45. Qd5 {[%clk 0:00:07.3]} 45... Qf6
{[%clk 0:00:12.8]} 46. Kg2 {[%clk 0:00:07.6]} 46... Kg7 {[%clk 0:00:12.5]} 47.
Qf3 {[%clk 0:00:07.6]} 47... Qe6 {[%clk 0:00:09.8]} 48. Qg3 {[%clk 0:00:07.8]}
48... Qf6 {[%clk 0:00:08.4]} 49. Rd5 {[%clk 0:00:08]} 49... Re8 {[%clk
0:00:08.1]} 50. R1d4 {[%clk 0:00:08]} 50... Re6 {[%clk 0:00:07.4]} 51. Rf4
{[%clk 0:00:07.9]} 51... Qd8 {[%clk 0:00:07.5]} 52. Rfd4 {[%clk 0:00:08.1]}
52... Qa8 {[%clk 0:00:07]} 53. Kg1 {[%clk 0:00:07.4]} 53... Qa1+ {[%clk
0:00:06.7]} 54. Kg2 {[%clk 0:00:07.7]} 54... Qa8 {[%clk 0:00:07.3]} 55. Kg1
{[%clk 0:00:08]} 55... Qe8 {[%clk 0:00:07.8]} 56. Kg2 {[%clk 0:00:08.1]} 56...
Rb7 {[%clk 0:00:07.7]} 57. d7 {[%clk 0:00:07.2]} 57... Qd8 {[%clk 0:00:07.7]}
58. Kg1 {[%clk 0:00:07.1]} 58... Re7 {[%clk 0:00:08]} 59. Qh3 {[%clk 0:00:05]}
59... f5 {[%clk 0:00:07.3]} 60. e4 {[%clk 0:00:05]} 60... Rbxd7 {[%clk
0:00:03.7]} 61. Rxd7 {[%clk 0:00:04.7]} 61... Rxd7 {[%clk 0:00:04.6]} 62. Rxd7+
{[%clk 0:00:05]} 62... Qxd7 {[%clk 0:00:05.5]} 63. exf5 {[%clk 0:00:05.9]} 63...
Qxf5 {[%clk 0:00:06.3]} 64. Qxf5 {[%clk 0:00:04.3]} 64... gxf5 {[%clk
0:00:07.2]} 65. Kg2 {[%clk 0:00:04.1]} 65... Kf6 {[%clk 0:00:07.3]} 66. Kg3
{[%clk 0:00:03.4]} 66... Ke5 {[%clk 0:00:02.9]} 67. Kh4 {[%clk 0:00:03.5]} 67...
Ke4 {[%clk 0:00:02.9]} 68. Kxh5 {[%clk 0:00:03.6]} 68... Kf4 {[%clk 0:00:03.5]}
69. Kg6 {[%clk 0:00:03.1]} 69... Kg4 {[%clk 0:00:03.8]} 70. Kf6 {[%clk
0:00:03.4]} 70... f4 {[%clk 0:00:03.8]} 71. Ke5 {[%clk 0:00:03.5]} 71... Kf3
{[%clk 0:00:04.3]} 72. Kf5 {[%clk 0:00:03.4]} 72... Kxf2 {[%clk 0:00:05.2]} 73.
Kxf4 {[%clk 0:00:03.7]} 1/2-1/2

[Event "*** SCC Grand Prix: Titled Tuesday Blitz"]
[Site "Chess.com"]
[Date "2020.08.11"]
[Round "4"]
[White "Srisshhhtea"]
[Black "nikitakhoroshev"]
[Result "1-0"]
[WhiteElo "2346"]
[BlackElo "2532"]
[TimeControl "180+1"]
[EndTime "10:41:31 PDT"]
[Termination "Srisshhhtea won by resignation"]

1. d4 {[%clk 0:03:00.9]} 1... Nf6 {[%clk 0:02:57.9]} 2. c4 {[%clk 0:03:00]} 2...
d6 {[%clk 0:02:57.1]} 3. Nc3 {[%clk 0:02:58.3]} 3... e5 {[%clk 0:02:56.9]} 4.
Nf3 {[%clk 0:02:53.9]} 4... Nbd7 {[%clk 0:02:56.1]} 5. Bg5 {[%clk 0:02:50.9]}
5... Be7 {[%clk 0:02:55.5]} 6. e3 {[%clk 0:02:50.4]} 6... h6 {[%clk 0:02:55.4]}
7. Bh4 {[%clk 0:02:47.8]} 7... c6 {[%clk 0:02:55.6]} 8. Be2 {[%clk 0:02:44.1]}
8... O-O {[%clk 0:02:54.9]} 9. O-O {[%clk 0:02:41.7]} 9... Re8 {[%clk
0:02:55.1]} 10. Qc2 {[%clk 0:02:32.7]} 10... exd4 {[%clk 0:02:54.6]} 11. Nxd4
{[%clk 0:02:29.4]} 11... Nc5 {[%clk 0:02:52]} 12. Rad1 {[%clk 0:02:27.2]} 12...
a5 {[%clk 0:02:51.5]} 13. Nf5 {[%clk 0:02:24.7]} 13... Bxf5 {[%clk 0:02:47.8]}
14. Qxf5 {[%clk 0:02:25.6]} 14... Qb6 {[%clk 0:02:47.6]} 15. Rd2 {[%clk
0:02:20]} 15... g6 {[%clk 0:02:40.5]} 16. Qc2 {[%clk 0:02:16]} 16... Nfe4 {[%clk
0:02:33.2]} 17. Nxe4 {[%clk 0:02:10.4]} 17... Bxh4 {[%clk 0:02:32.8]} 18. Nxd6
{[%clk 0:02:07.5]} 18... Red8 {[%clk 0:02:30.5]} 19. Rfd1 {[%clk 0:01:59.6]}
19... Be7 {[%clk 0:02:02.4]} 20. Ne4 {[%clk 0:01:50.8]} 20... Rxd2 {[%clk
0:02:02.2]} 21. Rxd2 {[%clk 0:01:49.3]} 21... Rd8 {[%clk 0:02:02.4]} 22. Rxd8+
{[%clk 0:01:46.1]} 22... Qxd8 {[%clk 0:02:02.9]} 23. Nxc5 {[%clk 0:01:44.8]}
23... Bxc5 {[%clk 0:02:03.8]} 24. g3 {[%clk 0:01:42.6]} 24... Qf6 {[%clk
0:02:00.9]} 25. h4 {[%clk 0:01:40]} 25... h5 {[%clk 0:02:00.4]} 26. Kg2 {[%clk
0:01:39.4]} 26... Kg7 {[%clk 0:01:59.5]} 27. Bf3 {[%clk 0:01:38.1]} 27... Bb4
{[%clk 0:01:53.3]} 28. a3 {[%clk 0:01:35.2]} 28... Bc5 {[%clk 0:01:49.6]} 29.
Qb3 {[%clk 0:01:33.7]} 29... Qe7 {[%clk 0:01:47.4]} 30. Qc3+ {[%clk 0:01:31.9]}
30... Qf6 {[%clk 0:01:47]} 31. Qxa5 {[%clk 0:01:26.4]} 31... b6 {[%clk
0:01:46.8]} 32. Qd2 {[%clk 0:01:25.7]} 32... Bd6 {[%clk 0:01:42.9]} 33. b4
{[%clk 0:01:20]} 33... c5 {[%clk 0:01:40.5]} 34. Bd5 {[%clk 0:01:09]} 34... Be5
{[%clk 0:01:38.2]} 35. bxc5 {[%clk 0:01:03.8]} 35... bxc5 {[%clk 0:01:39.1]} 36.
a4 {[%clk 0:01:01.2]} 36... Bc3 {[%clk 0:01:38.5]} 37. Qc2 {[%clk 0:00:58.4]}
37... Be1 {[%clk 0:01:36.6]} 38. Qe2 {[%clk 0:00:55]} 38... Bb4 {[%clk
0:01:35.1]} 39. Qf3 {[%clk 0:00:54.3]} 39... Qe7 {[%clk 0:01:29.5]} 40. Qf4
{[%clk 0:00:49.9]} 40... Be1 {[%clk 0:01:22.4]} 41. Kf1 {[%clk 0:00:48.7]} 41...
Bb4 {[%clk 0:01:19.8]} 42. Kg2 {[%clk 0:00:49.2]} 42... Be1 {[%clk 0:01:19.1]}
43. Qe4 {[%clk 0:00:48.4]} 43... Qf6 {[%clk 0:01:18.8]} 44. Qf3 {[%clk
0:00:48.1]} 44... Qe7 {[%clk 0:01:18.9]} 45. Kf1 {[%clk 0:00:47.1]} 45... Bb4
{[%clk 0:01:18.1]} 46. Kg1 {[%clk 0:00:47.1]} 46... Bc3 {[%clk 0:01:12.4]} 47.
Bc6 {[%clk 0:00:43.3]} 47... Bb4 {[%clk 0:01:05.3]} 48. Bb5 {[%clk 0:00:41.8]}
48... Qe5 {[%clk 0:00:58.6]} 49. Kg2 {[%clk 0:00:39.8]} 49... Qb2 {[%clk
0:00:57.4]} 50. Be8 {[%clk 0:00:37.3]} 50... f5 {[%clk 0:00:45.8]} 51. Qb7+
{[%clk 0:00:36.2]} 51... Kh6 {[%clk 0:00:44.4]} 52. Qf7 {[%clk 0:00:32]} 52...
Qg7 {[%clk 0:00:43.5]} 53. Qe6 {[%clk 0:00:27.6]} 53... Bc3 {[%clk 0:00:41.6]}
54. Bc6 {[%clk 0:00:25.6]} 54... Qf6 {[%clk 0:00:33]} 55. Qxf6 {[%clk 0:00:24]}
55... Bxf6 {[%clk 0:00:33.9]} 56. a5 {[%clk 0:00:24.3]} 56... Bd8 {[%clk
0:00:34.5]} 57. a6 {[%clk 0:00:24]} 57... Bb6 {[%clk 0:00:35.2]} 58. Kf3 {[%clk
0:00:21.2]} 58... Kg7 {[%clk 0:00:35.7]} 59. Kf4 {[%clk 0:00:20.5]} 59... Bc7+
{[%clk 0:00:35.5]} 60. Kf3 {[%clk 0:00:20]} 60... Bb8 {[%clk 0:00:34.7]} 61. Be8
{[%clk 0:00:20.2]} 61... Kf6 {[%clk 0:00:34.6]} 62. Ke2 {[%clk 0:00:20.4]} 62...
Ba7 {[%clk 0:00:34.1]} 63. Kd3 {[%clk 0:00:20.3]} 63... g5 {[%clk 0:00:34.4]}
64. hxg5+ {[%clk 0:00:19.1]} 64... Kxg5 {[%clk 0:00:35.3]} 65. Ke2 {[%clk
0:00:18.3]} 65... h4 {[%clk 0:00:34.9]} 66. gxh4+ {[%clk 0:00:17.2]} 66... Kxh4
{[%clk 0:00:35.8]} 67. Kd3 {[%clk 0:00:16.3]} 67... Kg5 {[%clk 0:00:35.7]} 68.
f3 {[%clk 0:00:16.3]} 68... Kf6 {[%clk 0:00:35.3]} 69. e4 {[%clk 0:00:15.5]}
69... f4 {[%clk 0:00:33.5]} 70. Bh5 {[%clk 0:00:14.5]} 70... Ke5 {[%clk
0:00:33.3]} 71. Kc3 {[%clk 0:00:14.2]} 71... Bb8 {[%clk 0:00:32]} 72. Kb3 {[%clk
0:00:14.3]} 72... Kd6 {[%clk 0:00:32.2]} 73. Ka4 {[%clk 0:00:14.4]} 73... Kc6
{[%clk 0:00:32.6]} 74. Be8+ {[%clk 0:00:13.4]} 74... Kb6 {[%clk 0:00:32.4]} 75.
Bb5 {[%clk 0:00:13.9]} 75... Be5 {[%clk 0:00:32.3]} 76. Kb3 {[%clk 0:00:13.4]}
76... Ka7 {[%clk 0:00:32.5]} 77. Kc2 {[%clk 0:00:13.9]} 77... Kb6 {[%clk
0:00:31.9]} 78. Kd1 {[%clk 0:00:14.8]} 78... Bb8 {[%clk 0:00:30.9]} 79. Ke2
{[%clk 0:00:15.7]} 79... Kc7 {[%clk 0:00:31.3]} 80. Kf1 {[%clk 0:00:16.6]} 80...
Kd6 {[%clk 0:00:31.8]} 81. Kg2 {[%clk 0:00:17.5]} 81... Ke5 {[%clk 0:00:32.3]}
82. Kh3 {[%clk 0:00:18.4]} 82... Kf6 {[%clk 0:00:30.5]} 83. Kg4 {[%clk
0:00:19.3]} 83... Kg6 {[%clk 0:00:30.6]} 84. Bc6 {[%clk 0:00:15.5]} 84... Kf6
{[%clk 0:00:30.4]} 85. Bb7 {[%clk 0:00:14.9]} 85... Kg6 {[%clk 0:00:27.9]} 86.
e5 {[%clk 0:00:13.1]} 1-0

[Event "*** SCC Grand Prix: Titled Tuesday Blitz"]
[Site "Chess.com"]
[Date "2020.08.11"]
[Round "4"]
[White "DrVelja"]
[Black "wonderfultime"]
[Result "0-1"]
[WhiteElo "2767"]
[BlackElo "2980"]
[TimeControl "180+1"]
[EndTime "10:41:42 PDT"]
[Termination "wonderfultime won on time"]

1. e4 {[%clk 0:03:00.9]} 1... c5 {[%clk 0:03:00.3]} 2. Nf3 {[%clk 0:03:01]} 2...
Nf6 {[%clk 0:03:00.8]} 3. e5 {[%clk 0:03:00.2]} 3... Nd5 {[%clk 0:03:01.1]} 4.
Nc3 {[%clk 0:03:00.6]} 4... e6 {[%clk 0:03:01.7]} 5. Nxd5 {[%clk 0:03:01.1]}
5... exd5 {[%clk 0:03:02.6]} 6. d4 {[%clk 0:03:01.6]} 6... Nc6 {[%clk
0:03:03.1]} 7. c3 {[%clk 0:03:01.9]} 7... d6 {[%clk 0:03:03.1]} 8. Bb5 {[%clk
0:02:54]} 8... Be7 {[%clk 0:03:03]} 9. exd6 {[%clk 0:02:51.1]} 9... Bxd6 {[%clk
0:03:03.9]} 10. Qe2+ {[%clk 0:02:29.7]} 10... Be6 {[%clk 0:02:58.6]} 11. dxc5
{[%clk 0:02:25.2]} 11... Bxc5 {[%clk 0:02:58.3]} 12. Be3 {[%clk 0:02:25.7]}
12... Bxe3 {[%clk 0:02:51]} 13. Qxe3 {[%clk 0:02:24]} 13... O-O {[%clk
0:02:50.9]} 14. O-O {[%clk 0:02:20.4]} 14... Re8 {[%clk 0:02:51.4]} 15. Rfe1
{[%clk 0:02:07]} 15... h6 {[%clk 0:02:44.9]} 16. Bxc6 {[%clk 0:01:52.1]} 16...
bxc6 {[%clk 0:02:43.7]} 17. Qc5 {[%clk 0:01:51.8]} 17... Qb6 {[%clk 0:02:41.2]}
18. b4 {[%clk 0:01:28.4]} 18... Qxc5 {[%clk 0:02:29.9]} 19. bxc5 {[%clk
0:01:29.3]} 19... Rab8 {[%clk 0:02:30.8]} 20. Nd4 {[%clk 0:01:29.1]} 20... Bd7
{[%clk 0:02:20.2]} 21. Reb1 {[%clk 0:01:21.5]} 21... Kf8 {[%clk 0:02:14]} 22. f3
{[%clk 0:01:15.5]} 22... f5 {[%clk 0:01:41]} 23. Kf2 {[%clk 0:00:53.8]} 23... f4
{[%clk 0:01:40.9]} 24. Rb3 {[%clk 0:00:49.1]} 24... g5 {[%clk 0:01:16.3]} 25.
Rab1 {[%clk 0:00:48.6]} 25... Rxb3 {[%clk 0:01:16.1]} 26. axb3 {[%clk
0:00:48.1]} 26... Re3 {[%clk 0:01:16.3]} 27. Rc1 {[%clk 0:00:38.1]} 27... a5
{[%clk 0:01:14.5]} 28. g3 {[%clk 0:00:29.7]} 28... Be8 {[%clk 0:01:11.7]} 29.
gxf4 {[%clk 0:00:27.5]} 29... gxf4 {[%clk 0:01:12.6]} 30. Nf5 {[%clk 0:00:15.2]}
30... Re5 {[%clk 0:00:33.8]} 31. Nd4 {[%clk 0:00:13.7]} 31... Re3 {[%clk
0:00:28.3]} 32. Nf5 {[%clk 0:00:13.6]} 32... Re5 {[%clk 0:00:17.4]} 33. Nd4
{[%clk 0:00:14]} 33... Re7 {[%clk 0:00:09.4]} 34. Re1 {[%clk 0:00:12.5]} 34...
Rb7 {[%clk 0:00:09.4]} 35. Ra1 {[%clk 0:00:12.8]} 35... Ra7 {[%clk 0:00:09.2]}
36. Ra4 {[%clk 0:00:13.3]} 36... Re7 {[%clk 0:00:07.9]} 37. Rxa5 {[%clk
0:00:08.9]} 37... Re3 {[%clk 0:00:08.4]} 38. Ra8 {[%clk 0:00:07.5]} 38... Rxc3
{[%clk 0:00:06.7]} 39. Nf5 {[%clk 0:00:07.8]} 39... Rc2+ {[%clk 0:00:06.3]} 40.
Ke1 {[%clk 0:00:07.6]} 40... Rc3 {[%clk 0:00:05.5]} 41. Nd6 {[%clk 0:00:05.9]}
41... Rxb3 {[%clk 0:00:03.3]} 42. Rxe8+ {[%clk 0:00:05.2]} 42... Kg7 {[%clk
0:00:03.9]} 43. Kf2 {[%clk 0:00:05.3]} 43... Rb2+ {[%clk 0:00:04.1]} 44. Re2
{[%clk 0:00:05.4]} 44... Rb3 {[%clk 0:00:04.3]} 45. Rc2 {[%clk 0:00:05.9]} 45...
Kf6 {[%clk 0:00:03.8]} 46. Re2 {[%clk 0:00:03.4]} 46... Rc3 {[%clk 0:00:03.1]}
47. Nb7 {[%clk 0:00:03.9]} 47... d4 {[%clk 0:00:02.9]} 48. Re4 {[%clk
0:00:02.9]} 48... Rc2+ {[%clk 0:00:02.9]} 49. Ke1 {[%clk 0:00:03.5]} 49... d3
{[%clk 0:00:03.5]} 50. Rxf4+ {[%clk 0:00:03.2]} 50... Ke5 {[%clk 0:00:04.1]} 51.
Re4+ {[%clk 0:00:03.5]} 51... Kd5 {[%clk 0:00:04.7]} 52. Kd1 {[%clk 0:00:04]}
52... Rxh2 {[%clk 0:00:04.8]} 53. Nd8 {[%clk 0:00:04.3]} 53... Kxc5 {[%clk
0:00:04.5]} 54. Ne6+ {[%clk 0:00:04.8]} 54... Kd6 {[%clk 0:00:04.7]} 55. Nf4
{[%clk 0:00:05.7]} 55... d2 {[%clk 0:00:05.1]} 56. Ne2 {[%clk 0:00:04.4]} 56...
Rf2 {[%clk 0:00:03.9]} 57. Re3 {[%clk 0:00:04]} 57... h5 {[%clk 0:00:02.6]} 58.
Kxd2 {[%clk 0:00:04.5]} 58... h4 {[%clk 0:00:03.1]} 59. f4 {[%clk 0:00:05.4]}
59... Kd5 {[%clk 0:00:03]} 60. Re5+ {[%clk 0:00:05.1]} 60... Kd6 {[%clk
0:00:02.8]} 61. Rh5 {[%clk 0:00:05.3]} 61... Rh2 {[%clk 0:00:03.4]} 62. Ke3
{[%clk 0:00:05.8]} 62... c5 {[%clk 0:00:04]} 63. Nc3 {[%clk 0:00:05.5]} 63...
Rh3+ {[%clk 0:00:04]} 64. Kd2 {[%clk 0:00:05]} 64... c4 {[%clk 0:00:04.6]} 65.
Ne4+ {[%clk 0:00:04.5]} 65... Ke7 {[%clk 0:00:05.1]} 66. Re5+ {[%clk 0:00:04.2]}
66... Kf8 {[%clk 0:00:04.7]} 67. Rf5+ {[%clk 0:00:04.3]} 67... Kg7 {[%clk
0:00:05.2]} 68. Rg5+ {[%clk 0:00:04.1]} 68... Kh6 {[%clk 0:00:05.8]} 69. Kc2
{[%clk 0:00:02.3]} 69... Rf3 {[%clk 0:00:05.4]} 70. Rg4 {[%clk 0:00:02.8]} 70...
h3 {[%clk 0:00:05.9]} 71. Rh4+ {[%clk 0:00:02.8]} 71... Kg6 {[%clk 0:00:05.9]}
72. Ng5 {[%clk 0:00:03.3]} 72... Rf2+ {[%clk 0:00:06.4]} 73. Kc3 {[%clk
0:00:03.8]} 73... h2 {[%clk 0:00:07]} 74. Kxc4 {[%clk 0:00:03.4]} 74... Rxf4+
{[%clk 0:00:07.5]} 75. Rxf4 {[%clk 0:00:02.6]} 75... h1=Q {[%clk 0:00:08.1]} 0-1

[Event "*** SCC Grand Prix: Titled Tuesday Blitz"]
[Site "Chess.com"]
[Date "2020.08.11"]
[Round "4"]
[White "Tactictic"]
[Black "Goryachkina"]
[Result "1-0"]
[WhiteElo "2374"]
[BlackElo "2565"]
[TimeControl "180+1"]
[EndTime "10:42:01 PDT"]
[Termination "Tactictic won by resignation"]

1. e4 {[%clk 0:03:00.9]} 1... e6 {[%clk 0:02:59.9]} 2. d4 {[%clk 0:02:59.4]}
2... d5 {[%clk 0:03:00.1]} 3. Nd2 {[%clk 0:03:00.3]} 3... Nf6 {[%clk 0:02:59.4]}
4. e5 {[%clk 0:03:00.7]} 4... Nfd7 {[%clk 0:02:59.6]} 5. Bd3 {[%clk 0:03:01.5]}
5... c5 {[%clk 0:02:59.8]} 6. c3 {[%clk 0:03:02.2]} 6... Nc6 {[%clk 0:02:59.6]}
7. Ne2 {[%clk 0:03:02.9]} 7... cxd4 {[%clk 0:02:59.7]} 8. cxd4 {[%clk
0:03:03.3]} 8... f6 {[%clk 0:02:59.4]} 9. exf6 {[%clk 0:03:03.6]} 9... Nxf6
{[%clk 0:02:59.1]} 10. O-O {[%clk 0:03:03.2]} 10... Bd6 {[%clk 0:02:59.2]} 11.
Nf3 {[%clk 0:03:03.1]} 11... O-O {[%clk 0:02:58.8]} 12. Bg5 {[%clk 0:03:00.9]}
12... Bd7 {[%clk 0:02:53.7]} 13. Re1 {[%clk 0:02:40.4]} 13... Qe8 {[%clk
0:02:47.9]} 14. Bh4 {[%clk 0:02:36.2]} 14... Nh5 {[%clk 0:02:33.7]} 15. Rc1
{[%clk 0:02:08]} 15... a6 {[%clk 0:02:07.3]} 16. Bb1 {[%clk 0:01:44]} 16... g6
{[%clk 0:02:01.8]} 17. Bg3 {[%clk 0:01:31.5]} 17... Nxg3 {[%clk 0:01:59.6]} 18.
hxg3 {[%clk 0:01:32.1]} 18... Qf7 {[%clk 0:01:57.2]} 19. Nc3 {[%clk 0:01:24.3]}
19... Rae8 {[%clk 0:01:50.8]} 20. Rc2 {[%clk 0:01:17.1]} 20... Qf6 {[%clk
0:01:21.5]} 21. Rce2 {[%clk 0:01:11.3]} 21... Re7 {[%clk 0:01:14.8]} 22. a3
{[%clk 0:00:53.9]} 22... Bc7 {[%clk 0:01:08.8]} 23. Ba2 {[%clk 0:00:50.2]} 23...
Kg7 {[%clk 0:00:47.8]} 24. Bxd5 {[%clk 0:00:21.2]} 24... exd5 {[%clk 0:00:41.8]}
25. Nxd5 {[%clk 0:00:22.1]} 25... Rxe2 {[%clk 0:00:40]} 26. Nxf6 {[%clk
0:00:16.4]} 26... Rxe1+ {[%clk 0:00:39.9]} 27. Qxe1 {[%clk 0:00:16.3]} 27...
Rxf6 {[%clk 0:00:39]} 28. d5 {[%clk 0:00:15.8]} 28... Nd8 {[%clk 0:00:37.3]} 29.
Ng5 {[%clk 0:00:14]} 29... Bd6 {[%clk 0:00:19.5]} 30. Ne4 {[%clk 0:00:12.9]}
30... Be5 {[%clk 0:00:16.1]} 31. Nxf6 {[%clk 0:00:12.1]} 31... Bxf6 {[%clk
0:00:16.2]} 32. Qb4 {[%clk 0:00:12.1]} 32... Kf7 {[%clk 0:00:12.2]} 33. Qd6
{[%clk 0:00:11.4]} 33... Bf5 {[%clk 0:00:08.8]} 34. Qc7+ {[%clk 0:00:10.7]}
34... Ke8 {[%clk 0:00:07]} 35. Qxh7 {[%clk 0:00:09.3]} 35... Bxb2 {[%clk
0:00:06.7]} 36. d6 {[%clk 0:00:09]} 36... Bf6 {[%clk 0:00:06.3]} 37. Qg8+ {[%clk
0:00:07.5]} 37... Kd7 {[%clk 0:00:06.2]} 38. Qf8 {[%clk 0:00:07.5]} 38... Bg5
{[%clk 0:00:03.6]} 39. f4 {[%clk 0:00:07.6]} 39... Ne6 {[%clk 0:00:02.4]} 40.
Qb8 {[%clk 0:00:07.1]} 40... Bd8 {[%clk 0:00:01.9]} 41. Qxb7+ {[%clk 0:00:07.2]}
41... Kxd6 {[%clk 0:00:02.5]} 42. Qxa6+ {[%clk 0:00:06.8]} 42... Kd7 {[%clk
0:00:03]} 43. Qb5+ {[%clk 0:00:06.9]} 43... Kd6 {[%clk 0:00:03.2]} 44. a4 {[%clk
0:00:07.6]} 44... Bc7 {[%clk 0:00:02.5]} 45. a5 {[%clk 0:00:07.7]} 45... Nd4
{[%clk 0:00:02.7]} 46. Qb4+ {[%clk 0:00:07.7]} 46... Kd5 {[%clk 0:00:03.2]} 47.
a6 {[%clk 0:00:07.7]} 47... Nc6 {[%clk 0:00:03.6]} 48. Qb5+ {[%clk 0:00:07.8]}
48... Kd6 {[%clk 0:00:04.1]} 49. Qa4 {[%clk 0:00:06.6]} 49... Bb8 {[%clk
0:00:04.2]} 50. Kh2 {[%clk 0:00:06.8]} 50... Ba7 {[%clk 0:00:04.2]} 51. Qd1+
{[%clk 0:00:06.7]} 51... Kc7 {[%clk 0:00:04]} 52. g4 {[%clk 0:00:07.6]} 52...
Bd7 {[%clk 0:00:04.1]} 53. Qd3 {[%clk 0:00:07.6]} 53... Bxg4 {[%clk 0:00:02.3]}
54. Qxg6 {[%clk 0:00:07.7]} 54... Bd7 {[%clk 0:00:02.9]} 55. f5 {[%clk
0:00:08.1]} 55... Ne5 {[%clk 0:00:01.8]} 56. Qg7 {[%clk 0:00:08.5]} 56... Bd4
{[%clk 0:00:01.7]} 57. f6 {[%clk 0:00:08.1]} 57... Ng4+ {[%clk 0:00:02.1]} 58.
Kg3 {[%clk 0:00:07.6]} 58... Nxf6 {[%clk 0:00:03]} 59. Qf7 {[%clk 0:00:05.1]}
59... Ne4+ {[%clk 0:00:03.1]} 60. Kf4 {[%clk 0:00:05.6]} 60... Nd6 {[%clk
0:00:03.9]} 61. Qd5 {[%clk 0:00:05.5]} 61... Ba7 {[%clk 0:00:04]} 62. Qa5+
{[%clk 0:00:04.1]} 62... Kc6 {[%clk 0:00:04]} 63. Qc3+ {[%clk 0:00:04.4]} 63...
Kb6 {[%clk 0:00:04.2]} 64. Qb4+ {[%clk 0:00:04.4]} 64... Kc6 {[%clk 0:00:04.5]}
65. Qc3+ {[%clk 0:00:04.8]} 65... Kd5 {[%clk 0:00:05]} 66. Qd3+ {[%clk 0:00:05]}
66... Ke6 {[%clk 0:00:04.7]} 67. Qg6+ {[%clk 0:00:05.1]} 67... Kd5 {[%clk
0:00:04.9]} 68. Qg7 {[%clk 0:00:05.1]} 68... Kc6 {[%clk 0:00:05.1]} 69. Qf6
{[%clk 0:00:04.9]} 69... Bc5 {[%clk 0:00:04]} 70. g4 {[%clk 0:00:05.1]} 70...
Ba7 {[%clk 0:00:02.8]} 71. g5 {[%clk 0:00:05.4]} 71... Kc7 {[%clk 0:00:03.4]}
72. g6 {[%clk 0:00:05.3]} 72... Ne8 {[%clk 0:00:03.7]} 73. Qf7 {[%clk
0:00:05.2]} 73... Bd4 {[%clk 0:00:03.5]} 74. a7 {[%clk 0:00:04.6]} 74... Bxa7
{[%clk 0:00:03.3]} 75. g7 {[%clk 0:00:03.9]} 75... Nxg7 {[%clk 0:00:03.7]} 76.
Qxg7 {[%clk 0:00:04.8]} 76... Bc5 {[%clk 0:00:04]} 77. Qe5+ {[%clk 0:00:05]}
77... Kc6 {[%clk 0:00:04.1]} 78. Qe4+ {[%clk 0:00:05.1]} 78... Kc7 {[%clk
0:00:04.2]} 79. Ke5 {[%clk 0:00:05.5]} 79... Bd6+ {[%clk 0:00:04.5]} 80. Kf6
{[%clk 0:00:05.8]} 80... Bc6 {[%clk 0:00:04.5]} 81. Qc4 {[%clk 0:00:05.9]} 81...
Kd7 {[%clk 0:00:04.5]} 82. Qe6+ {[%clk 0:00:05.8]} 82... Kc7 {[%clk 0:00:04.8]}
83. Qf7+ {[%clk 0:00:06.2]} 83... Bd7 {[%clk 0:00:05.2]} 84. Qc4+ {[%clk
0:00:06.4]} 84... Bc6 {[%clk 0:00:05.6]} 85. Ke6 {[%clk 0:00:06.7]} 85... Bg3
{[%clk 0:00:05.2]} 86. Qc5 {[%clk 0:00:05.6]} 86... Bh2 {[%clk 0:00:04.7]} 87.
Qe7+ {[%clk 0:00:05.7]} 87... Kb6 {[%clk 0:00:05.2]} 88. Qb4+ {[%clk 0:00:05.9]}
88... Kc7 {[%clk 0:00:05.6]} 89. Qa5+ {[%clk 0:00:06.3]} 89... Kc8 {[%clk
0:00:05.6]} 90. Qa6+ {[%clk 0:00:05.8]} 90... Bb7 {[%clk 0:00:05.6]} 91. Qc4+
{[%clk 0:00:05.9]} 91... Kb8 {[%clk 0:00:05.3]} 92. Kd7 {[%clk 0:00:06.3]} 92...
Bg3 {[%clk 0:00:04.8]} 93. Qg8+ {[%clk 0:00:06.3]} 1-0